bitfinex-derivatives/quotes_BTCF0:USTF0_20250906
["timestamp","ask_amount","ask_price","bid_price","bid_amount"]
[1757133113349,0.03233425,110900.0,110890.0,0.03397]
[1757133113648,0.54010753,110900.0,110890.0,0.03344883]
[1757133118954,1.35534753,110900.0,110890.0,0.03344883]
[1757133142267,1.12977216,110900.0,110890.0,0.03344883]
[1757133142566,1.35534753,110900.0,110890.0,0.03344883]
[1757133155483,1.38362814,110900.0,110890.0,0.03344883]
[1757133159379,1.13362814,110900.0,110880.0,0.00023524]
[1757133159575,0.27582598,110890.0,110880.0,0.00023524]
[1757133159773,0.30056389,110890.0,110880.0,0.00013524]
[1757133160083,0.30056389,110890.0,110880.0,0.03358407]
[1757133161084,0.30056389,110890.0,110880.0,0.05572407]
[1757133162084,0.30056389,110890.0,110880.0,0.05672407]
[1757133163082,0.30056389,110890.0,110880.0,0.03458407]
[1757133164990,0.55441987,110890.0,110880.0,0.03458407]
[1757133178703,1.37017987,110890.0,110880.0,0.03458407]
[1757133179001,0.55441987,110890.0,110880.0,0.03458407]
[1757133179200,1.37009987,110890.0,110880.0,0.03458407]
[1757133179604,0.55441987,110890.0,110880.0,0.03458407]
[1757133179806,1.37009987,110890.0,110880.0,0.03458407]
[1757133180806,0.55441987,110890.0,110880.0,0.03458407]
[1757133181106,1.37009987,110890.0,110880.0,0.03458407]
[1757133181405,0.55441987,110890.0,110880.0,0.03458407]
[1757133181607,1.37009987,110890.0,110880.0,0.03458407]
[1757133182000,1.37044099,110890.0,110880.0,0.03458407]
[1757133186110,0.86260903,110890.0,110880.0,0.03458407]
[1757133186310,1.37032099,110890.0,110880.0,0.03458407]
[1757133193810,1.62032099,110890.0,110880.0,0.03208407]
[1757133195417,1.62132099,110890.0,110880.0,0.03208407]
[1757133201925,1.62132099,110890.0,110880.0,0.02402407]
[1757133204725,0.80576099,110890.0,110880.0,0.02402407]
[1757133204926,1.62776099,110890.0,110880.0,0.02402407]
[1757133209432,1.37776099,110890.0,110880.0,0.02402407]
[1757133215437,1.32148801,110890.0,110880.0,0.02402407]
[1757133219434,1.32148801,110890.0,110880.0,0.0045]
[1757133219938,1.3214671,110890.0,110880.0,0.0045]
[1757133223747,0.4994671,110890.0,110880.0,0.0045]
[1757133223935,1.3215071,110890.0,110880.0,0.0045]
[1757133224844,1.09578761,110890.0,110880.0,0.0045]
[1757133225144,1.3215071,110890.0,110880.0,0.0045]
[1757133243558,0.1955,110880.0,110870.0,0.0001]
[1757133243857,0.6719971,110880.0,110860.0,0.03628]
[1757133244059,0.44627761,110880.0,110870.0,0.01952407]
[1757133244260,1.26779761,110880.0,110870.0,0.01952407]
[1757133244461,1.26779761,110880.0,110870.0,0.03340407]
[1757133244958,1.26779761,110880.0,110870.0,0.03440407]
[1757133245159,1.4935171,110880.0,110870.0,0.03440407]
[1757133246761,1.4935171,110880.0,110870.0,0.05746407]
[1757133248449,1.4935171,110880.0,110870.0,0.03440407]
[1757133259768,1.4935171,110880.0,110870.0,0.05746407]
[1757133262770,1.26779761,110880.0,110870.0,0.05746407]
[1757133271079,1.4935171,110880.0,110870.0,0.05746407]
[1757133273681,0.16003593,110870.0,110860.0,0.01322]
[1757133273874,0.41081354,110870.0,110860.0,0.03636]
[1757133275396,0.41081354,110870.0,110860.0,0.03736]
[1757133275584,0.43902706,110870.0,110860.0,0.03836]
[1757133281391,0.18509405,110870.0,110860.0,0.03836]
[1757133281585,0.43902706,110870.0,110860.0,0.03836]
[1757133287094,1.25998706,110870.0,110860.0,0.03836]
[1757133289594,0.43902706,110870.0,110860.0,0.03836]
[1757133289792,1.26022706,110870.0,110860.0,0.03836]
[1757133289993,1.23516894,110870.0,110860.0,0.03836]
[1757133290397,1.26022151,110870.0,110860.0,0.03836]
[1757133292098,1.23516894,110870.0,110860.0,0.03836]
[1757133292597,1.23512894,110870.0,110860.0,0.03836]
[1757133292792,0.09967593,110860.0,110850.0,0.28557397]
[1757133293097,0.09967593,110860.0,110850.0,0.30777397]
[1757133293098,0.35360894,110860.0,110850.0,0.30777397]
[1757133294396,0.35360894,110860.0,110850.0,0.30977397]
[1757133294696,0.35360894,110860.0,110850.0,0.31077397]
[1757133295194,0.09967593,110860.0,110850.0,0.31077397]
[1757133295492,0.1707711,110860.0,110850.0,0.31077397]
[1757133296894,0.1936811,110860.0,110850.0,0.31077397]
[1757133303501,0.1707711,110860.0,110850.0,0.31077397]
[1757133304399,0.46030411,110860.0,110850.0,0.04343096]
[1757133304598,0.46030411,110860.0,110850.0,0.29736397]
[1757133304895,0.46030411,110860.0,110850.0,0.04343096]
[1757133306197,0.46130411,110860.0,110850.0,0.04243096]
[1757133307601,0.46230411,110860.0,110850.0,0.04043096]
[1757133307801,0.4711062,110860.0,110850.0,0.04043096]
[1757133308902,0.21717319,110860.0,110850.0,0.04043096]
[1757133309105,0.4711062,110860.0,110850.0,0.04043096]
[1757133310406,0.05924497,110850.0,110840.0,0.26744301]
[1757133310605,0.08215497,110850.0,110840.0,0.28964301]
[1757133311805,0.08215497,110850.0,110840.0,0.29064301]
[1757133319711,0.05924497,110850.0,110840.0,0.63478932]
[1757133319911,0.05924497,110850.0,110840.0,0.38085631]
[1757133320411,0.05924497,110850.0,110840.0,0.63085631]
[1757133320608,0.01269,110890.0,110870.0,0.1245935]
[1757133320913,0.0218,110890.0,110880.0,0.03506]
[1757133321213,0.0218,110890.0,110880.0,0.28899301]
[1757133321411,0.27573301,110890.0,110880.0,0.28899301]
[1757133321810,0.0258,110890.0,110880.0,0.28899301]
[1757133322303,0.0218,110890.0,110880.0,0.28899301]
[1757133322510,0.0248,110890.0,110880.0,0.28899301]
[1757133322813,0.28173301,110890.0,110880.0,0.28899301]
[1757133323416,0.27873301,110890.0,110880.0,0.28899301]
[1757133323619,0.28073301,110890.0,110880.0,0.28899301]
[1757133324814,0.29226301,110890.0,110880.0,0.28899301]
[1757133325812,0.03833,110890.0,110880.0,0.28899301]
[1757133326013,0.29026301,110890.0,110880.0,0.28899301]
[1757133326212,0.29126301,110890.0,110880.0,0.28899301]
[1757133326414,0.03733,110890.0,110880.0,0.28899301]
[1757133326616,0.29126301,110890.0,110880.0,0.02165]
[1757133326810,0.29126301,110890.0,110880.0,0.27558301]
[1757133328709,0.03733,110890.0,110880.0,0.27558301]
[1757133329016,0.29126301,110890.0,110880.0,0.27558301]
[1757133330417,0.29126301,110890.0,110880.0,0.02165]
[1757133330617,0.29126301,110890.0,110880.0,0.27558301]
[1757133334118,0.03733,110890.0,110880.0,0.27558301]
[1757133334323,0.29126301,110890.0,110880.0,0.27558301]
[1757133334718,0.03733,110890.0,110880.0,0.27558301]
[1757133334914,0.29126301,110890.0,110880.0,0.27558301]
[1757133335824,0.29126301,110890.0,110880.0,0.02165]
[1757133336124,0.29126301,110890.0,110880.0,0.27558301]
[1757133337023,0.03733,110890.0,110880.0,0.27558301]
[1757133337221,0.29126301,110890.0,110880.0,0.27558301]
[1757133337421,0.29126301,110890.0,110880.0,0.02165]
[1757133337422,0.03733,110890.0,110880.0,0.02165]
[1757133340217,0.002,110890.0,110880.0,0.60082847]
[1757133342424,0.002,110890.0,110880.0,0.51064767]
[1757133342724,0.0238,110890.0,110880.0,0.51064767]
[1757133345421,0.03734,110890.0,110880.0,0.27165]
[1757133345626,0.26292767,110890.0,110880.0,0.02165]
[1757133346928,0.03734,110890.0,110880.0,0.02165]
[1757133359331,0.03619,110880.0,110870.0,0.02131]
[1757133359532,0.03619,110880.0,110870.0,0.02121]
[1757133370162,0.03619,110870.0,110860.0,0.03944065]
[1757133370355,0.26177767,110870.0,110860.0,0.03934065]
[1757133370757,0.03619,110870.0,110860.0,0.03934065]
[1757133371257,0.28619,110870.0,110860.0,0.03934065]
[1757133371460,0.51177767,110870.0,110860.0,0.01813065]
[1757133377763,0.51177767,110870.0,110850.0,0.0001]
[1757133377969,0.26231767,110860.0,110850.0,0.02131]
[1757133378170,0.26231767,110860.0,110850.0,0.02121]
[1757133378767,0.03673,110860.0,110850.0,0.02121]
[1757133379972,0.03673,110860.0,110850.0,0.02221]
[1757133380268,0.26231767,110860.0,110850.0,0.02321]
[1757133381771,0.3351878,110860.0,110850.0,0.02321]
[1757133381971,0.3351878,110860.0,110850.0,0.002]
[1757133382168,0.34414686,110860.0,110850.0,0.002]
[1757133383070,0.34414686,110860.0,110850.0,0.001]
[1757133383473,0.34414686,110860.0,110850.0,0.02311]
[1757133385274,0.11855919,110860.0,110850.0,0.02311]
[1757133385475,0.34414686,110860.0,110850.0,0.02311]
[1757133399492,0.37252429,110860.0,110850.0,0.02311]
[1757133403294,0.11855919,110860.0,110850.0,0.02311]
[1757133403488,0.37252429,110860.0,110850.0,0.02311]
[1757133407596,0.11855919,110860.0,110850.0,0.02311]
[1757133407895,0.37252429,110860.0,110850.0,0.02311]
[1757133425709,1.19068429,110860.0,110850.0,0.02311]
[1757133428315,0.37252429,110860.0,110850.0,0.02311]
[1757133428612,1.17320429,110860.0,110850.0,0.02311]
[1757133429914,0.37252429,110860.0,110850.0,0.02311]
[1757133430214,1.17320429,110860.0,110850.0,0.02311]
[1757133434018,0.11855919,110860.0,110850.0,0.02311]
[1757133434220,0.36356523,110860.0,110850.0,0.2770751]
[1757133448133,0.10960013,110860.0,110850.0,0.2770751]
[1757133448338,0.36356523,110860.0,110850.0,0.2770751]
[1757133455241,0.36356523,110860.0,110850.0,0.02311]
[1757133455540,0.10960013,110860.0,110850.0,0.2770751]
[1757133455742,0.36356523,110860.0,110850.0,0.2770751]
[1757133456744,0.10960013,110860.0,110850.0,0.2770751]
[1757133456938,0.36356523,110860.0,110850.0,0.2770751]
[1757133461444,0.10960013,110860.0,110850.0,0.02311]
[1757133487667,0.02327,110860.0,110850.0,0.24881263]
[1757133487867,0.02272116,110870.0,110850.0,0.24881263]
[1757133488067,0.02272116,110870.0,110850.0,0.25808613]
[1757133488274,0.02279,110860.0,110850.0,0.25808613]
[1757133488472,0.02279,110860.0,110850.0,0.25798613]
[1757133495274,0.02279,110870.0,110860.0,0.1243371]
[1757133495472,0.02279,110870.0,110860.0,0.35003973]
[1757133495674,0.02279,110870.0,110860.0,0.60003973]
[1757133496780,0.02379,110870.0,110860.0,0.60003973]
[1757133497175,0.02479,110870.0,110860.0,0.60003973]
[1757133497576,0.002,110870.0,110860.0,0.60003973]
[1757133498882,0.002,110870.0,110860.0,0.61805582]
[1757133510991,0.002,110870.0,110860.0,0.39235319]
[1757133511192,0.002,110870.0,110860.0,0.61805582]
[1757133512793,0.002,110870.0,110860.0,0.36805582]
[1757133512995,0.002,110870.0,110860.0,0.61805582]
[1757133519302,0.002,110870.0,110860.0,0.36805582]
[1757133523704,0.002,110870.0,110860.0,0.50903953]
[1757133525604,0.00013524,110880.0,110870.0,0.123029]
[1757133525804,0.00013524,110880.0,110870.0,1.44803552]
[1757133526705,0.00213524,110880.0,110870.0,1.44803552]
[1757133527003,0.00413524,110880.0,110870.0,1.51869138]
[1757133527306,0.00413524,110880.0,110870.0,1.19429226]
[1757133532311,0.00413524,110880.0,110870.0,1.51934802]
[1757133533213,0.00413524,110880.0,110870.0,1.26560476]
[1757133541520,0.00413524,110880.0,110870.0,1.37854784]
[1757133542315,0.00413524,110880.0,110870.0,1.37842784]
[1757133542718,0.00413524,110880.0,110870.0,1.26548476]
[1757133543810,0.00413524,110880.0,110870.0,0.1943415]
[1757133544014,0.00413524,110880.0,110870.0,1.0117015]
[1757133544211,0.00413524,110880.0,110870.0,1.26544476]
[1757133555636,0.00213524,110880.0,110870.0,1.26544476]
[1757133556136,0.00013524,110880.0,110870.0,1.26544476]
[1757133556335,0.00013524,110880.0,110870.0,1.26644476]
[1757133557833,0.00013524,110880.0,110870.0,1.17625576]
[1757133562530,0.00013524,110880.0,110870.0,1.42999902]
[1757133563231,0.00013524,110880.0,110870.0,1.17625576]
[1757133563433,0.00013524,110880.0,110870.0,1.26644466]
[1757133570144,0.00013524,110880.0,110870.0,1.37938774]
[1757133570941,0.00013524,110880.0,110870.0,1.26644466]
[1757133578747,0.00013524,110880.0,110870.0,1.37938774]
[1757133585462,0.00013524,110880.0,110870.0,1.3511969]
[1757133588263,0.03572,110900.0,110890.0,0.02132]
[1757133588555,0.03572,110900.0,110890.0,0.83832]
[1757133589461,0.03872,110900.0,110890.0,0.83832]
[1757133592366,0.03872,110900.0,110890.0,0.02132]
[1757133600973,0.03672,110900.0,110890.0,0.02132]
[1757133601173,0.03872,110900.0,110890.0,0.02132]
[1757133602775,0.03772,110900.0,110890.0,0.02132]
[1757133602971,0.03672,110900.0,110890.0,0.02132]
[1757133603174,0.03872,110900.0,110890.0,0.02132]
[1757133619688,0.03672,110900.0,110890.0,0.02132]
[1757133619886,0.03872,110900.0,110890.0,0.02132]
[1757133620088,0.03772,110900.0,110890.0,0.02132]
[1757133620491,0.03672,110900.0,110890.0,0.02132]
[1757133623896,0.03672,110900.0,110890.0,0.03030895]
[1757133624192,0.03672,110900.0,110890.0,0.02132]
[1757133624590,0.02292,110900.0,110890.0,0.24687242]
[1757133624792,0.001,110900.0,110890.0,0.33704512]
[1757133626294,0.001,110900.0,110890.0,0.34605658]
[1757133626491,0.02279,110900.0,110890.0,0.25588388]
[1757133626693,0.02379,110900.0,110890.0,0.25588388]
[1757133626890,0.001,110900.0,110890.0,0.25588388]
[1757133627090,0.02279,110900.0,110890.0,0.25588388]
[1757133628396,0.0139,110910.0,110890.0,0.25588388]
[1757133628594,0.0139,110910.0,110890.0,0.25598388]
[1757133629496,0.02279,110900.0,110890.0,0.25598388]
[1757133629696,0.02279,110900.0,110890.0,0.25588388]
[1757133631498,0.0139,110910.0,110890.0,0.34605618]
[1757133631699,0.0139,110910.0,110900.0,0.24820242]
[1757133631700,0.03669,110910.0,110900.0,0.24820242]
[1757133631998,0.03669,110910.0,110900.0,0.02265]
[1757133632900,0.03769,110910.0,110900.0,0.02265]
[1757133633402,0.03669,110910.0,110900.0,0.02265]
[1757133633602,0.03769,110910.0,110900.0,0.02265]
[1757133635198,0.02389,110910.0,110900.0,0.25943242]
[1757133635496,0.0011,110910.0,110900.0,0.25943242]
[1757133636102,0.0011,110910.0,110900.0,1.07595242]
[1757133637204,0.0011,110910.0,110900.0,1.16611692]
[1757133642413,0.0011,110910.0,110900.0,1.07595242]
[1757133643311,0.0011,110910.0,110900.0,1.16611692]
[1757133645113,0.0011,110910.0,110900.0,1.41611692]
[1757133647418,0.0011,110910.0,110900.0,1.6977522]
[1757133648115,0.0011,110910.0,110900.0,1.1905645]
[1757133648319,0.0011,110910.0,110900.0,1.44415835]
[1757133653118,0.0011,110910.0,110900.0,1.6977522]
[1757133657825,0.0011,110910.0,110900.0,1.44415835]
[1757133659226,0.0011,110910.0,110900.0,1.6977522]
[1757133660024,0.0011,110910.0,110900.0,1.56069528]
[1757133660223,0.01296,110940.0,110910.0,0.0901535]
[1757133660518,0.03491,110940.0,110930.0,0.27527385]
[1757133661023,0.04391051,110940.0,110930.0,0.27527385]
[1757133661223,0.03491,110940.0,110930.0,0.27527385]
[1757133661616,0.03991,110940.0,110930.0,0.27527385]
[1757133661927,0.02995,110940.0,110930.0,0.27527385]
[1757133665927,0.04257,110940.0,110930.0,0.27527385]
[1757133671232,0.04257,110940.0,110930.0,0.02168]
[1757133671526,0.04257,110940.0,110930.0,0.27527385]
[1757133680141,0.04257,110940.0,110930.0,0.02168]
[1757133680336,0.04267,110940.0,110930.0,0.27527385]
[1757133683840,0.03452,110930.0,110920.0,0.27524385]
[1757133684142,0.28821385,110930.0,110920.0,1.06966385]
[1757133684438,0.03462,110930.0,110920.0,1.06966385]
[1757133685140,0.03662,110930.0,110920.0,1.06966385]
[1757133685841,0.03962,110930.0,110920.0,1.06966385]
[1757133687941,0.03962,110930.0,110920.0,0.27514385]
[1757133688145,0.03962,110930.0,110920.0,1.09110385]
[1757133707762,0.03562,110930.0,110920.0,1.09110385]
[1757133709265,0.03562,110930.0,110920.0,0.02155]
[1757133709562,0.03562,110930.0,110920.0,1.0628238]
[1757133714474,0.03562,110930.0,110920.0,1.0627838]
[1757133720583,0.03562,110930.0,110920.0,0.83735]
[1757133720781,0.03562,110930.0,110920.0,1.0627438]
[1757133723681,0.03562,110930.0,110920.0,1.0748338]
[1757133730894,0.03562,110930.0,110920.0,0.2590338]
[1757133731095,0.03562,110930.0,110920.0,1.0747938]
[1757133732195,0.03562,110930.0,110920.0,0.2590338]
[1757133732397,0.03562,110930.0,110920.0,1.0747538]
[1757133734199,0.03562,110930.0,110920.0,1.0626638]
[1757133738101,0.02295,110930.0,110920.0,1.0626638]
[1757133741808,0.03602,110930.0,110920.0,1.0626638]
[1757133752814,0.02295,110930.0,110920.0,1.0626638]
[1757133754618,0.03602,110930.0,110920.0,1.0626638]
[1757133758720,0.2614138,110930.0,110920.0,0.02155]
[1757133759821,0.03602,110930.0,110920.0,0.02155]
[1757133769439,0.28963039,110930.0,110920.0,0.27516039]
[1757133789449,0.03602,110930.0,110920.0,0.27516039]
[1757133789654,0.02295,110930.0,110920.0,0.29336217]
[1757133801368,0.0011,110930.0,110920.0,0.54336217]
[1757133801557,0.02237,110930.0,110920.0,0.54336217]
[1757133802676,0.02237,110930.0,110920.0,1.35864217]
[1757133802868,0.02237,110930.0,110920.0,0.54336217]
[1757133803072,0.02237,110930.0,110920.0,1.35864217]
[1757133804564,0.02237,110930.0,110920.0,0.03975178]
[1757133804772,0.03543,110930.0,110920.0,0.79328217]
[1757133805069,0.03543,110930.0,110920.0,1.10864217]
[1757133806373,0.03543,110930.0,110920.0,1.10860217]
[1757133807475,0.28904039,110930.0,110920.0,1.10860217]
[1757133807773,0.03543,110930.0,110920.0,1.10860217]
[1757133808373,0.28904039,110930.0,110920.0,0.03975178]
[1757133808573,0.28904039,110930.0,110920.0,0.29336217]
[1757133815280,0.28904039,110930.0,110920.0,0.03975178]
[1757133815581,0.28904039,110930.0,110920.0,0.29336217]
[1757133827897,0.28904039,110930.0,110920.0,0.03975178]
[1757133828088,0.28904039,110930.0,110920.0,0.29336217]
[1757133828394,0.03543,110930.0,110920.0,0.29336217]
[1757133828596,0.28904039,110930.0,110920.0,0.29336217]
[1757133831499,0.03543,110930.0,110920.0,0.03975178]
[1757133846812,0.26084436,110930.0,110920.0,0.03975178]
[1757133847018,0.51084436,110930.0,110920.0,0.03975178]
[1757133851323,0.28543,110930.0,110920.0,0.03975178]
[1757133863935,0.51084436,110930.0,110920.0,0.03975178]
[1757133864534,0.28543,110930.0,110920.0,0.03975178]
[1757133864730,0.51084436,110930.0,110920.0,0.03975178]
[1757133865433,0.28543,110930.0,110920.0,0.03975178]
[1757133865636,0.51084436,110930.0,110920.0,0.03975178]
[1757133875142,0.03528,110920.0,110910.0,0.02271524]
[1757133875334,0.26079436,110920.0,110910.0,0.02261524]
[1757133875534,0.03538,110920.0,110910.0,0.02261524]
[1757133876848,0.03538,110920.0,110910.0,0.02361524]
[1757133893466,0.2890326,110920.0,110910.0,0.27726784]
[1757133900068,0.2890326,110920.0,110910.0,0.02361524]
[1757133900270,0.2890326,110920.0,110910.0,0.27726784]
[1757133902572,0.03538,110920.0,110910.0,0.27726784]
[1757133902771,0.2890326,110920.0,110910.0,0.27726784]
[1757133905367,0.2890326,110920.0,110910.0,0.02361524]
[1757133912878,0.2890326,110920.0,110910.0,0.27726784]
[1757133914481,0.03538,110920.0,110910.0,0.27726784]
[1757133915178,0.2890326,110920.0,110910.0,0.27726784]
[1757133922892,0.03538,110920.0,110910.0,0.27726784]
[1757133923191,0.2890326,110920.0,110910.0,0.27726784]
[1757133924394,0.03538,110920.0,110910.0,0.27726784]
[1757133924593,0.2890326,110920.0,110910.0,0.27726784]
[1757133926597,0.03538,110920.0,110910.0,0.27726784]
[1757133927693,0.2890326,110920.0,110910.0,0.27726784]
[1757133930290,0.03538,110920.0,110910.0,0.27726784]
[1757133930493,0.0001,110920.0,110910.0,0.53092044]
[1757133930998,0.02311,110920.0,110910.0,0.27726784]
[1757133931192,0.03633,110920.0,110910.0,0.27726784]
[1757133942098,0.03633,110920.0,110910.0,0.02361524]
[1757133942295,0.03633,110920.0,110910.0,0.27726784]
[1757133942502,0.2899826,110920.0,110910.0,0.27726784]
[1757133942702,0.2899826,110920.0,110910.0,0.02361524]
[1757133942903,0.2899826,110920.0,110910.0,0.27726784]
[1757133949510,0.03633,110920.0,110910.0,0.27726784]
[1757133949710,0.2899826,110920.0,110910.0,0.27726784]
[1757133953111,0.03633,110920.0,110910.0,0.29535336]
[1757133953508,0.03633,110920.0,110910.0,0.2671468]
[1757133978538,0.03633,110920.0,110910.0,0.04170076]
[1757133978739,0.03633,110920.0,110910.0,0.2671468]
[1757134003858,0.03633,110920.0,110910.0,0.04170076]
[1757134007465,0.03633,110920.0,110910.0,0.2671468]
[1757134007761,0.03633,110920.0,110910.0,0.04170076]
[1757134015463,0.03633,110920.0,110910.0,0.29533577]
[1757134025788,0.03633,110920.0,110910.0,0.04170076]
[1757134025989,0.03633,110920.0,110910.0,0.29533577]
[1757134030687,0.28996501,110920.0,110910.0,0.29533577]
[1757134034993,0.03633,110920.0,110910.0,0.29533577]
[1757134054504,0.03633,110920.0,110910.0,0.04170076]
[1757134054705,0.03633,110920.0,110910.0,0.29533577]
[1757134058113,0.03633,110920.0,110910.0,0.04170076]
[1757134058412,0.28996501,110920.0,110910.0,0.04170076]
[1757134058602,0.28996501,110920.0,110910.0,0.29533577]
[1757134065819,0.28996501,110920.0,110910.0,0.04170076]
[1757134066019,0.28996501,110920.0,110910.0,0.29533577]
[1757134071119,0.28996501,110920.0,110910.0,0.27725025]
[1757134075420,0.03633,110920.0,110910.0,0.02361524]
[1757134097526,0.02311,110920.0,110910.0,0.26117802]
[1757134110441,0.03598,110920.0,110910.0,0.26117802]
[1757134110846,0.03598,110920.0,110910.0,0.24908802]
[1757134116947,0.02311,110920.0,110910.0,0.24908802]
[1757134122447,0.03598,110920.0,110910.0,0.24908802]
[1757134125858,0.02311,110920.0,110910.0,0.24908802]
[1757134130050,0.03633,110920.0,110910.0,0.24908802]
[1757134137565,0.03633,110920.0,110910.0,0.27723879]
[1757134139965,0.02311,110920.0,110910.0,0.27723879]
[1757134140467,0.0001,110920.0,110910.0,0.62101964]
[1757134141462,0.0001,110920.0,110910.0,0.87101964]
[1757134142065,0.0001,110920.0,110910.0,0.87001964]
[1757134142264,0.0001,110920.0,110910.0,0.87201964]
[1757134142764,0.0001,110920.0,110910.0,0.98496272]
[1757134143469,0.0001,110920.0,110910.0,0.87201964]
[1757134143767,0.36865259,110950.0,110940.0,0.02212]
[1757134143966,0.36865259,110950.0,110940.0,0.27574355]
[1757134145671,0.37065259,110950.0,110940.0,0.27574355]
[1757134146369,0.37265259,110950.0,110940.0,0.27574355]
[1757134146664,0.11902904,110950.0,110940.0,0.27574355]
[1757134146868,0.37265259,110950.0,110940.0,0.27574355]
[1757134147064,0.11902904,110950.0,110940.0,0.27574355]
[1757134147260,0.37265259,110950.0,110940.0,0.27574355]
[1757134147972,0.02593,110950.0,110940.0,0.28783355]
[1757134161875,0.02593,110950.0,110940.0,0.5414571]
[1757134163679,0.02593,110950.0,110940.0,0.03421]
[1757134164078,0.02593,110950.0,110940.0,0.28783355]
[1757134165782,0.02593,110950.0,110940.0,0.5414571]
[1757134170984,0.02593,110950.0,110940.0,0.28783355]
[1757134172488,0.02593,110950.0,110940.0,0.5414571]
[1757134174890,0.02593,110950.0,110940.0,0.28783355]
[1757134175993,0.02593,110950.0,110940.0,0.5414571]
[1757134176384,0.004,110950.0,110940.0,0.5414571]
[1757134178994,0.004,110950.0,110940.0,0.03421]
[1757134179194,0.004,110950.0,110940.0,0.5414571]
[1757134187496,0.004,110950.0,110940.0,0.03421]
[1757134187800,0.004,110950.0,110940.0,0.5414571]
[1757134197402,0.004,110950.0,110940.0,0.25949996]
[1757134202709,0.004,110950.0,110940.0,0.34963276]
[1757134204313,0.004,110950.0,110940.0,0.25949996]
[1757134204913,0.004,110950.0,110940.0,1.07353996]
[1757134207012,0.002,110950.0,110940.0,1.07353996]
[1757134207216,0.003,110950.0,110940.0,1.07353996]
[1757134207712,0.003,110950.0,110940.0,0.25949996]
[1757134207913,0.003,110950.0,110940.0,1.07349996]
[1757134208414,0.002,110950.0,110940.0,1.07349996]
[1757134209009,0.001,110950.0,110940.0,1.07349996]
[1757134209215,0.00916388,110960.0,110940.0,1.07549996]
[1757134209414,0.03228388,110960.0,110950.0,0.24805996]
[1757134209616,0.03218388,110960.0,110950.0,0.24805996]
[1757134212214,0.02312,110960.0,110950.0,0.24805996]
[1757134215623,0.03209568,110960.0,110950.0,0.24805996]
[1757134221928,0.02312,110960.0,110950.0,0.24805996]
[1757134240153,0.09327104,110970.0,110950.0,0.24805996]
[1757134240350,0.11797188,110970.0,110950.0,0.24805996]
[1757134240954,0.02123,110960.0,110950.0,0.24805996]
[1757134241854,0.09427104,110970.0,110950.0,0.24805996]
[1757134242054,0.11550104,110970.0,110960.0,0.24634996]
[1757134242257,0.11840104,110970.0,110960.0,0.02106]
[1757134242455,0.11740104,110970.0,110960.0,0.02106]
[1757134242658,0.11740104,110970.0,110960.0,0.24634996]
[1757134242859,0.11440104,110970.0,110960.0,0.24634996]
[1757134243260,0.11540104,110970.0,110960.0,0.24634996]
[1757134243461,0.11840104,110970.0,110960.0,0.24634996]
[1757134243963,0.11840104,110970.0,110960.0,0.02106]
[1757134245459,0.11840104,110970.0,110960.0,0.24634996]
[1757134247164,0.11840104,110970.0,110960.0,0.02106]
[1757134247361,0.1431052,110970.0,110960.0,0.02106]
[1757134250166,0.11840104,110970.0,110960.0,0.02106]
[1757134250666,0.14310474,110970.0,110960.0,0.02106]
[1757134254465,0.11840104,110970.0,110960.0,0.02106]
[1757134257567,0.3718418,110970.0,110960.0,0.27450076]
[1757134263467,0.11840104,110970.0,110960.0,0.27450076]
[1757134263667,0.3718418,110970.0,110960.0,0.27450076]
[1757134264671,0.11840104,110970.0,110960.0,0.27450076]
[1757134264872,0.3718418,110970.0,110960.0,0.27450076]
[1757134268476,0.11840104,110970.0,110960.0,0.27450076]
[1757134268676,0.3718418,110970.0,110960.0,0.27450076]
[1757134270178,0.3965589,110970.0,110960.0,0.27450076]
[1757134274080,0.14311814,110970.0,110960.0,0.27450076]
[1757134274680,0.3965589,110970.0,110960.0,0.27450076]
[1757134275182,0.14311814,110970.0,110960.0,0.27450076]
[1757134283293,0.11840104,110970.0,110960.0,0.27450076]
[1757134284088,0.11840104,110970.0,110960.0,0.02106]
[1757134284295,0.11840104,110970.0,110960.0,0.27450076]
[1757134284693,0.39656602,110970.0,110960.0,0.27450076]
[1757134288598,0.14312526,110970.0,110960.0,0.27450076]
[1757134288795,0.39656602,110970.0,110960.0,0.27450076]
[1757134294300,0.3718418,110970.0,110960.0,0.27450076]
[1757134305320,0.11840104,110970.0,110960.0,0.27450076]
[1757134305507,0.3718418,110970.0,110960.0,0.27450076]
[1757134310214,0.39659306,110970.0,110960.0,0.27450076]
[1757134314113,0.39559306,110970.0,110960.0,0.27450076]
[1757134314314,0.39659306,110970.0,110960.0,0.27450076]
[1757134318817,0.1431523,110970.0,110960.0,0.27450076]
[1757134319421,0.1431523,110970.0,110960.0,0.02106]
[1757134320226,0.11840104,110970.0,110960.0,0.02106]
[1757134321729,0.14317294,110970.0,110960.0,0.02106]
[1757134331739,0.11840104,110970.0,110960.0,0.02106]
[1757134360361,0.14318067,110970.0,110960.0,0.02106]
[1757134370468,0.14318067,110970.0,110960.0,0.24633243]
[1757134370670,0.14218067,110970.0,110960.0,0.24633243]
[1757134370869,0.14118067,110970.0,110960.0,0.24633243]
[1757134379275,0.11640104,110970.0,110960.0,0.24633243]
[1757134381473,0.3698209,110970.0,110960.0,0.27447986]
[1757134382775,0.11640104,110970.0,110960.0,0.27447986]
[1757134382976,0.3698209,110970.0,110960.0,0.27447986]
[1757134385282,0.11640104,110970.0,110960.0,0.27447986]
[1757134386481,0.11640104,110970.0,110960.0,0.02106]
[1757134386679,0.11640104,110970.0,110960.0,0.27447986]
[1757134389184,0.3698209,110970.0,110960.0,0.27447986]
[1757134390286,0.3698209,110970.0,110960.0,0.02106]
[1757134390486,0.3698209,110970.0,110960.0,0.27447986]
[1757134392889,0.11640104,110970.0,110960.0,0.27447986]
[1757134393889,0.3698209,110970.0,110960.0,0.27447986]
[1757134394190,0.11640104,110970.0,110960.0,0.27447986]
[1757134395484,0.04532579,110970.0,110960.0,0.27447986]
[1757134400198,0.07011023,110970.0,110960.0,0.27447986]
[1757134403696,0.04532579,110970.0,110960.0,0.27447986]
[1757134406596,0.07011116,110970.0,110960.0,0.27447986]
[1757134410201,0.04532579,110970.0,110960.0,0.27447986]
[1757134438131,0.02323,110970.0,110960.0,0.28560986]
[1757134438326,0.002,110970.0,110960.0,0.53902972]
[1757134441033,0.02233903,110980.0,110960.0,0.53902972]
[1757134441231,0.04443903,110980.0,110970.0,0.52883972]
[1757134441432,0.04433903,110980.0,110970.0,0.24719775]
[1757134442726,0.04633903,110980.0,110970.0,0.24719775]
[1757134443240,0.03311903,110980.0,110970.0,0.03409]
[1757134443433,0.03311903,110980.0,110970.0,0.25928775]